bitfinex-derivatives/quotes_ETHF0:USTF0_20210703
["timestamp","ask_amount","ask_price","bid_price","bid_amount"]
[1625282237066,1.33220265,2128.5,2127.9,2.20527]
[1625282237161,3.95120265,2128.5,2127.9,2.20527]
[1625282237462,1.3320299,2128.4,2127.9,2.20527]
[1625282237561,43.6889,2128.0,2127.9,2.20527]
[1625282237663,46.4544,2128.0,2127.9,2.20527]
[1625282238312,2.7655,2128.0,2127.9,2.20527]
[1625282238664,1.3320299,2128.4,2127.9,2.20527]
[1625282238862,4.41054,2128.0,2127.9,2.20527]
[1625282242837,1.0,2128.5,2127.9,46.00587]
[1625282242934,2.20527,2128.4,2127.9,48.60667]
[1625282243590,2.20527,2128.4,2127.9,4.80607]
[1625282244242,2.20527,2128.4,2128.0,48.5562]
[1625282244894,2.20527,2128.4,2128.3,2.20527]
[1625282252311,2.20527,2128.4,2128.3,42.38747]
[1625282253113,2.20527,2128.4,2128.3,2.20527]
[1625282253668,2.20527,2128.4,2128.3,46.66357]
[1625282255474,2.20527,2128.4,2128.3,2.20527]
[1625282259289,2.20527,2128.4,2128.3,57.97877]
[1625282263155,2.20527,2128.6,2128.3,57.97877]
[1625282263256,1.33521839,2128.8,2128.3,57.97877]
[1625282263406,1.0,2129.3,2128.3,57.97877]
[1625282263407,1.33631734,2129.1,2128.3,57.97877]
[1625282263711,1.33619151,2129.2,2128.3,57.97877]
[1625282264055,1.33619151,2129.2,2129.0,45.9599]
[1625282264156,1.33619151,2129.2,2129.0,3.5345]
[1625282264458,1.87066812,2129.3,2129.0,3.5345]
[1625282264459,1.33655673,2129.3,2129.0,3.5345]
[1625282264709,0.80315673,2129.3,2129.0,3.5345]
[1625282264810,1.33690583,2129.4,2129.0,3.5345]
[1625282264961,1.33690583,2129.4,2129.3,57.9955]
[1625282265108,3.54217583,2129.4,2129.3,62.40604]
[1625282265309,2.20527,2129.4,2129.3,62.40604]
[1625282265811,2.20527,2129.4,2129.3,4.41054]
[1625282270725,2.20527,2129.4,2129.3,58.40294]
[1625282271324,2.20527,2129.4,2129.3,4.41054]
[1625282272930,2.20527,2129.4,2129.3,62.51454]
[1625282275934,2.20527,2129.4,2129.3,4.41054]
[1625282276586,2.20527,2129.4,2129.3,60.23104]
[1625282276985,2.20527,2129.4,2129.3,4.41054]
[1625282277736,3.20527,2129.9,2129.3,4.41054]
[1625282278486,3.20527,2129.9,2129.4,57.4095]
[1625282278589,2.20527,2129.9,2129.4,57.4095]
[1625282279039,4.41054,2129.9,2129.8,2.20527]
[1625282281360,2.20527,2129.9,2129.8,2.20527]
[1625282282666,2.20527,2129.9,2129.3,2.20527]
[1625282282764,6.25277,2129.9,2128.4,15.3384]
[1625282283019,8.12951826,2129.9,2128.4,15.3384]
[1625282283120,2.20527,2129.1,2129.0,2.20527]
[1625282284070,2.20527,2129.1,2129.0,41.79717]
[1625282284320,2.20527,2129.1,2129.0,2.20527]
[1625282284922,2.87656368,2129.9,2129.0,2.20527]
[1625282285073,2.20527,2129.3,2129.0,5.94687]
[1625282285974,2.20527,2129.3,2129.0,2.20527]
[1625282286274,45.0234,2129.1,2129.0,2.20527]
[1625282286373,48.4168,2129.1,2129.0,2.20527]
[1625282286924,3.3934,2129.1,2129.0,2.20527]
[1625282287175,5.59867,2129.1,2129.0,2.20527]
[1625282287426,2.20527,2129.1,2129.0,2.20527]
[1625282295143,2.20527,2129.1,2129.0,48.25197]
[1625282296094,2.20527,2129.1,2129.0,2.20527]
[1625282301067,2.20527,2129.1,2129.0,44.06327]
[1625282301568,2.20527,2129.1,2129.0,2.20527]
[1625282306386,1.0,2129.7,2129.0,2.20527]
[1625282307187,3.20527,2129.7,2129.5,2.20527]
[1625282307337,2.20527,2129.7,2129.5,5.37047]
[1625282309240,2.20527,2129.6,2129.5,5.37047]
[1625282316154,2.20527,2129.6,2129.5,58.52597]
[1625282316254,2.20527,2129.6,2129.5,5.37047]
[1625282317058,2.20527,2129.6,2129.5,58.51347]
[1625282317663,1.0,2130.1,2129.5,58.51347]
[1625282317763,1.88122754,2130.4,2129.5,58.51347]
[1625282319373,2.20527,2130.2,2130.1,2.20527]
[1625282319476,2.20527,2130.2,2130.1,47.75337]
[1625282320675,2.20527,2130.2,2130.1,5.87887]
[1625282321427,4.41054,2130.2,2130.1,5.87887]
[1625282324979,4.41054,2130.2,2130.1,3.6736]
[1625282325080,4.41054,2130.2,2129.5,5.37047]
[1625282325381,2.20527,2130.2,2129.8,2.20527]
[1625282327436,2.20527,2129.9,2129.8,2.20527]
[1625282333005,2.20527,2129.9,2129.5,5.37047]
[1625282333105,2.20527,2129.9,2129.5,3.1652]
[1625282333216,4.99897,2129.9,2128.5,16.42035566]
[1625282333317,5.99897,2129.9,2128.5,16.42035566]
[1625282333418,2.20527,2129.2,2129.1,2.20527]
[1625282333715,49.20757,2129.2,2129.1,2.20527]
[1625282333917,2.20527,2129.2,2129.1,2.20527]
[1625282335431,4.41054,2129.2,2129.1,2.20527]
[1625282345768,4.41054,2129.2,2129.1,3.13687]
[1625282345868,4.41054,2129.2,2129.1,56.85267]
[1625282346171,4.41054,2129.2,2129.1,55.92107]
[1625282346269,4.41054,2129.2,2129.1,2.20527]
[1625282360621,6.80364,2129.2,2129.1,2.20527]
[1625282362443,6.80364,2129.2,2128.5,2.77491074]
[1625282362444,6.80364,2129.2,2128.5,1.94252085]
[1625282362977,1.89456892,2129.0,2128.1,1.94286321]
[1625282363127,54.0932,2128.5,2128.1,1.94286321]
[1625282363226,56.9213,2128.5,2128.0,1.94299114]
[1625282363726,4.41054,2128.1,2128.0,1.94299114]
[1625282364076,4.41054,2128.1,2127.9,1.94246194]
[1625282364880,4.41054,2128.1,2127.8,1.94249382]
[1625282366436,4.41054,2128.1,2127.7,1.94187597]
[1625282366844,4.41054,2128.1,2127.8,1.94186678]
[1625282367293,4.41054,2128.1,2127.7,1.94189949]
[1625282367693,2.20527,2127.8,2127.7,1.94189949]
[1625282369396,2.20527,2127.8,2127.6,4.14649023]
[1625282369746,2.20527,2127.7,2127.6,4.14649023]
[1625282371905,2.20527,2127.7,2127.6,2.20527]
[1625282378192,2.20527,2127.7,2127.6,56.50427]
[1625282380645,2.20527,2127.7,2127.6,2.20527]
[1625282395812,2.20527,2127.7,2127.6,47.38267]
[1625282397118,2.20527,2127.7,2127.6,2.20527]
[1625282397565,2.20527,2127.7,2127.6,49.52507]
[1625282398367,1.0,2128.6,2127.6,49.52507]
[1625282399371,1.0,2128.6,2127.6,51.46136122]
[1625282399523,1.0,2128.6,2127.6,4.14156122]
[1625282399821,1.0,2128.6,2127.6,2.20527]
[1625282399920,4.41054,2127.7,2127.6,2.20527]
[1625282400021,7.92684,2127.7,2127.6,2.20527]
[1625282402489,4.41054,2127.7,2127.6,2.20527]
[1625282402589,1.0,2128.3,2127.6,2.20527]
[1625282402692,1.0,2128.3,2127.6,5.26097]
[1625282403349,47.3945,2128.8,2127.6,5.26097]
[1625282403449,48.3945,2128.8,2127.6,5.26097]
[1625282403944,2.20527,2128.3,2128.2,2.20527]
[1625282405949,4.41054,2128.3,2128.2,2.20527]
[1625282410216,4.41054,2128.3,2127.6,4.14187768]
[1625282412020,2.20527,2127.7,2127.6,4.14187768]
[1625282413977,2.20527,2127.7,2127.6,2.20527]
[1625282422824,2.20527,2127.7,2127.6,4.14447501]
[1625282423172,2.20527,2127.7,2127.6,6.67757501]
[1625282423628,2.20527,2127.7,2127.6,62.77057501]
[1625282424279,2.20527,2127.7,2127.6,6.67757501]
[1625282425891,2.20527,2127.7,2127.6,50.97797501]
[1625282427002,3.20527,2128.3,2127.6,50.97797501]
[1625282427104,2.20527,2128.3,2127.6,50.97797501]
[1625282427459,1.67437,2128.3,2127.6,50.97797501]
[1625282427561,1.67437,2128.3,2127.9,1.93921754]
[1625282427661,1.0,2129.1,2127.9,1.93921754]
[1625282428063,1.0,2129.1,2128.1,1.9393198]
[1625282428161,14.5973,2129.4,2128.8,44.88647]
[1625282428162,2.20527,2128.9,2128.8,44.88647]
[1625282428265,2.20527,2128.9,2128.8,47.32777]
[1625282430166,4.41054,2128.9,2128.8,47.32777]
[1625282430717,4.41054,2128.9,2128.8,4.64657]
[1625282431869,4.41054,2128.9,2128.8,63.01997]
[1625282432081,4.41054,2128.9,2128.8,4.64657]
[1625282439056,4.41054,2128.9,2128.8,58.31427]
[1625282439859,4.41054,2128.9,2128.8,4.64657]
[1625282444119,1.0,2129.4,2128.8,4.64657]
[1625282444218,2.20527,2129.4,2129.3,4.41054]
[1625282444318,2.20527,2129.4,2129.3,8.09934]
[1625282447829,1.0,2129.9,2129.3,8.09934]
[1625282447928,1.88148298,2130.6,2129.3,8.09934]
[1625282448079,1.0,2130.5,2129.3,8.09934]
[1625282448232,1.0,2130.5,2130.2,2.20527]
[1625282448331,2.20527,2130.3,2130.2,5.62477]
[1625282450235,4.41054,2130.3,2130.2,5.62477]
[1625282454108,4.41054,2130.3,2130.2,63.05937]
[1625282454507,4.41054,2130.3,2130.2,5.62477]
[1625282461776,4.41054,2130.3,2130.2,3.4195]
[1625282461880,4.41054,2130.3,2128.9,1.93362605]
[1625282461975,1.0,2130.2,2128.9,1.93362605]
[1625282462179,1.0,2130.2,2128.8,15.0326]
[1625282462326,2.20527,2129.6,2129.4,2.20527]
[1625282467287,2.20527,2129.6,2129.5,50.1758]
[1625282467387,2.20527,2129.6,2129.5,53.5328]
[1625282468392,2.20527,2129.6,2129.5,3.357]
[1625282468491,2.20527,2129.6,2129.4,2.20527]
[1625282469492,2.20527,2129.8,2129.4,2.20527]
[1625282469643,2.20527,2129.8,2129.4,5.67107]
[1625282470394,2.20527,2129.8,2129.7,2.20527]
[1625282473072,2.20527,2129.8,2129.4,2.20527]
[1625282473178,4.52047,2129.8,2128.8,15.0326]
[1625282473620,51.1826,2129.3,2128.8,15.0326]
[1625282473870,51.1826,2129.3,2128.6,4.759]
[1625282474373,2.20527,2129.0,2128.9,2.20527]
[1625282476331,4.41054,2129.0,2128.9,2.20527]
[1625282483370,4.41054,2129.0,2128.9,57.90457]
[1625282484026,4.41054,2129.0,2128.9,2.20527]
[1625282485732,4.41054,2129.0,2128.9,47.10037]
[1625282487186,4.41054,2129.0,2128.9,2.20527]
[1625282487737,4.41054,2129.0,2128.9,43.26337]
[1625282488588,1.0,2129.5,2128.9,43.26337]
[1625282488687,14.9179,2130.6,2128.9,43.26337]
[1625282488787,1.0,2130.5,2128.9,43.26337]
[1625282489641,1.0,2130.5,2129.6,54.9653]
[1625282489788,15.9179,2130.6,2129.6,57.5337]
[1625282489941,14.9179,2130.6,2129.6,57.5337]
[1625282490439,2.20527,2130.2,2130.1,2.20527]
[1625282490541,2.20527,2130.2,2130.1,4.53797]
[1625282492446,4.41054,2130.2,2130.1,4.53797]
[1625282493857,54.18134,2130.2,2130.1,4.53797]
[1625282494663,4.41054,2130.2,2130.1,4.53797]
[1625282513628,5.75448464,2130.2,2130.1,4.53797]
[1625282517639,46.84488464,2130.2,2130.1,4.53797]
[1625282517887,5.75448464,2130.2,2130.1,4.53797]
[1625282518038,4.41054,2130.2,2130.1,4.53797]
[1625282518288,5.7572552,2130.2,2130.1,4.53797]
[1625282519039,4.41054,2130.2,2130.1,4.53797]
[1625282519591,6.29628123,2130.2,2130.1,4.53797]
[1625282519841,56.66388123,2130.2,2130.1,4.53797]
[1625282520142,56.66388123,2130.2,2129.3,1.38685064]
[1625282520542,2.20527,2129.6,2129.5,2.20527]
[1625282521447,2.20527,2129.6,2129.5,45.33807]
[1625282522449,2.20527,2129.6,2129.5,2.20527]
[1625282522602,4.41054,2129.6,2129.5,2.20527]
[1625282524903,2.20527,2129.6,2129.5,2.20527]
[1625282526872,2.20527,2129.6,2129.3,2.20527]
[1625282527329,50.4564,2129.4,2129.3,2.20527]
[1625282528584,52.66167,2129.4,2129.3,2.20527]
[1625282533552,2.20527,2129.4,2129.3,2.20527]
[1625282556145,2.20527,2129.4,2129.0,5.79247]
[1625282556749,2.20527,2129.1,2129.0,7.99774]
[1625282559057,2.20527,2129.1,2129.0,4.41054]
[1625282559457,57.94277,2129.1,2129.0,4.41054]
[1625282560011,2.20527,2129.1,2129.0,4.41054]
[1625282561825,58.04517,2129.1,2129.0,4.41054]
[1625282562524,58.04517,2129.1,2129.0,2.20527]
[1625282562625,60.62997,2129.1,2128.7,1.38705159]
[1625282562725,2.20527,2128.8,2128.7,1.38705159]
[1625282563428,2.20527,2128.8,2128.6,2.20527]
[1625282563533,4.85587,2128.8,2128.6,2.20527]
[1625282564734,2.20527,2128.7,2128.6,2.20527]
[1625282565394,5.52357,2128.7,2128.6,2.20527]
[1625282566797,5.52357,2128.7,2128.3,2.20527]
[1625282567200,54.0635,2128.4,2128.3,2.20527]
[1625282567401,6.52357,2128.7,2128.3,2.20527]
[1625282567501,5.52357,2128.7,2128.3,2.20527]
[1625282568753,2.20527,2128.4,2128.3,2.20527]
[1625282575118,51.19587,2128.4,2128.3,2.20527]
[1625282575474,2.20527,2128.4,2128.3,2.20527]
[1625282579195,55.13377,2128.4,2128.3,2.20527]
[1625282582298,2.20527,2128.4,2128.3,2.20527]
[1625282591312,54.62547,2128.4,2128.3,2.20527]
[1625282591861,2.20527,2128.4,2128.3,2.20527]
[1625282593717,1.34479188,2129.3,2128.3,2.20527]
[1625282594070,1.35301848,2129.6,2128.3,2.20527]
[1625282594767,1.35301848,2129.6,2129.1,54.4229]
[1625282594869,2.20527,2129.4,2129.2,2.20527]
[1625282595067,1.35336101,2129.7,2129.2,2.20527]
[1625282595219,2.70672202,2130.0,2129.2,2.20527]
[1625282595220,15.94095594,2129.9,2129.2,2.20527]
[1625282595672,1.35385594,2129.9,2129.2,2.20527]
[1625282595770,2.70771188,2130.1,2129.2,2.20527]
[1625282595771,1.35788912,2130.1,2129.2,2.20527]
[1625282596737,1.35860395,2130.0,2129.2,2.20527]
[1625282596936,45.26567,2129.8,2129.7,2.20527]
[1625282597036,45.26567,2129.8,2129.2,2.20527]
[1625282597535,43.0685,2129.3,2129.2,2.20527]
[1625282598588,43.0685,2129.3,2128.5,4.759]
[1625282598889,2.20527,2128.8,2128.6,2.20527]
[1625282598989,5.17637,2128.8,2128.6,2.20527]
[1625282600889,7.38164,2128.8,2128.6,2.20527]
[1625282601590,4.41054,2128.8,2128.6,2.20527]
[1625282608537,4.41054,2128.8,2128.6,61.24217]
[1625282608640,4.41054,2128.8,2128.6,2.20527]
[1625282609287,93.52903621,2129.7,2128.6,2.20527]
[1625282610993,2.20527,2129.2,2129.1,2.20527]
[1625282613002,4.41054,2129.2,2129.1,2.20527]
[1625282614704,50.18774,2129.2,2129.1,2.20527]
[1625282614853,4.41054,2129.2,2129.1,2.20527]
[1625282624349,52.79834,2129.2,2129.1,2.20527]
[1625282625753,4.41054,2129.2,2129.1,2.20527]
[1625282626355,47.38114,2129.2,2129.1,2.20527]
[1625282627371,47.38114,2129.2,2128.6,2.20527]
[1625282627709,48.73555794,2129.2,2128.6,2.20527]
[1625282628760,1.35436073,2129.1,2128.6,2.20527]
[1625282629060,4.41054,2128.7,2128.6,2.20527]
[1625282629510,60.83734,2128.7,2128.6,2.20527]
[1625282630660,4.41054,2128.7,2128.6,2.20527]
[1625282633437,45.32563627,2129.2,2128.6,2.20527]
[1625282633537,44.32563627,2129.2,2128.6,2.20527]
[1625282635089,4.41054,2128.7,2128.6,2.20527]
[1625282636294,48.84554,2128.7,2128.6,2.20527]
[1625282638755,4.41054,2128.7,2128.6,2.20527]
[1625282641359,45.32442104,2129.2,2128.6,2.20527]
[1625282641459,44.32442104,2129.2,2128.6,2.20527]
[1625282642063,1.35369846,2129.1,2128.6,2.20527]
[1625282643164,4.41054,2128.7,2128.6,2.20527]
[1625282644277,1.35369846,2129.1,2128.6,2.20527]
[1625282644377,1.35498592,2129.2,2128.6,2.20527]
[1625282644829,1.35560459,2129.4,2128.6,2.20527]
[1625282645129,1.35570453,2129.5,2128.6,2.20527]
[1625282645276,2.20527,2129.2,2129.1,2.20527]
[1625282645375,2.20527,2129.2,2129.1,4.89267]
[1625282647285,4.41054,2129.2,2129.1,4.89267]
[1625282651580,4e-05,2129.2,2129.1,4.89267]
[1625282651681,1.3567195,2129.6,2129.1,4.89267]
[1625282652080,1.3567195,2129.6,2129.5,45.7268]
[1625282652181,1.35732014,2130.0,2129.5,45.7268]
[1625282653230,1.35732014,2130.0,2129.9,4.41054]
[1625282653332,1.35732014,2130.0,2129.9,7.39354]
[1625282653531,1.35733469,2130.1,2129.9,7.39354]
[1625282656435,1.35624436,2130.2,2129.9,7.39354]
[1625282657291,1.35676271,2130.3,2129.9,7.39354]
[1625282658402,1.35588034,2130.2,2129.9,7.39354]
[1625282659503,1.35630317,2130.4,2129.9,7.39354]
[1625282659952,1.35605611,2130.3,2129.9,7.39354]
[1625282660754,1.35605611,2130.3,2129.9,61.24124]
[1625282661108,1.35605611,2130.3,2129.9,7.39354]
[1625282661357,1.35518596,2130.2,2129.9,5.18827]
[1625282661607,46.5287,2130.0,2129.9,5.18827]
[1625282661959,1.35498447,2130.1,2129.9,5.18827]
[1625282663262,1.35498447,2130.1,2130.0,2.20527]
[1625282664015,4.10224826,2130.2,2130.0,2.20527]
[1625282664414,1.35506021,2130.1,2130.0,2.20527]
[1625282667783,1.3552237,2130.2,2130.0,2.20527]
[1625282671904,1.35304373,2130.3,2130.0,2.20527]
[1625282672704,1.35256982,2130.2,2130.0,2.20527]
[1625282672803,1.35256982,2130.2,2130.1,50.0251]
[1625282672903,1.35256982,2130.2,2130.0,2.20527]
[1625282673254,1.35230893,2130.3,2130.0,2.20527]
[1625282675362,1.35250645,2130.4,2130.2,2.20527]
[1625282677472,1.35333419,2130.5,2130.2,2.20527]
[1625282677924,48.28224721,2130.6,2130.2,2.20527]
[1625282678023,5.76464721,2130.6,2130.2,2.20527]
[1625282678224,1.35394545,2130.5,2130.2,2.20527]
[1625282679385,1.35394545,2130.5,2130.4,2.20527]
[1625282679486,46.97944545,2130.5,2130.4,4.82387]
[1625282679587,1.35394545,2130.5,2130.4,4.82387]
[1625282680888,1.35428084,2130.6,2130.4,4.82387]
[1625282681689,1.35482168,2130.7,2130.5,52.6205]
[1625282681988,1.354944,2130.8,2130.5,52.6205]
[1625282682237,1.354944,2130.8,2130.4,4.82387]
[1625282682337,1.35491951,2130.7,2130.4,4.82387]
[1625282683439,1.35491951,2130.7,2130.6,2.20527]
[1625282683943,1.35491951,2130.7,2130.4,2.20527]
[1625282684092,4.66211951,2130.7,2129.3,1.0]
[1625282684240,4.66211951,2130.7,2129.0,18.39435215]
[1625282684241,49.9405,2130.0,2129.0,15.6276]
[1625282684694,49.9311,2129.6,2129.0,15.6276]
[1625282684791,50.9405,2130.0,2129.0,15.6276]
[1625282684891,49.9405,2130.0,2129.0,15.6276]
[1625282685001,49.9405,2130.0,2128.8,1.38363651]
[1625282685095,50.9405,2130.0,2128.7,1.38366538]
[1625282685443,50.9405,2130.0,2129.9,2.20527]
[1625282685541,49.9405,2130.0,2129.9,2.20527]
[1625282685741,2.20527,2130.1,2129.9,2.20527]
[1625282687445,4.41054,2130.1,2129.9,2.20527]
[1625282690398,54.736,2130.0,2129.9,2.20527]
[1625282690747,4.41054,2130.1,2129.9,2.20527]
[1625282691600,1.35224324,2130.0,2129.9,2.20527]
[1625282691703,3.95464324,2130.0,2129.9,2.20527]
[1625282691800,44.90224324,2130.0,2129.9,2.20527]
[1625282692108,45.44267863,2130.0,2129.9,2.20527]
[1625282694763,4.49507863,2130.0,2129.9,2.20527]
[1625282694963,3.95479274,2130.0,2129.9,2.20527]
[1625282695618,3.95479274,2130.0,2128.9,14.7794]
[1625282695768,4.95479274,2130.0,2128.9,14.7794]
[1625282695869,5.49575407,2130.0,2128.9,14.7794]
[1625282696119,4.95482738,2130.0,2129.0,52.5643]
[1625282696220,3.95482738,2130.0,2129.0,56.023]
[1625282696319,1.35242738,2130.0,2129.0,56.023]
[1625282697533,1.35242738,2130.0,2129.8,2.20527]
[1625282697632,1.35242738,2130.0,2129.8,4.64577]
[1625282698135,3.55800618,2130.1,2129.8,4.64577]
[1625282698335,1.35273618,2130.1,2129.8,4.64577]
[1625282698787,1.35305117,2130.2,2129.8,4.64577]
[1625282699437,44.2945,2130.1,2129.8,4.64577]
[1625282699536,44.2945,2130.1,2130.0,2.20527]
[1625282699789,1.35305117,2130.2,2130.0,2.20527]
[1625282700989,1.3533834,2130.3,2130.0,2.20527]
[1625282701639,1.3533834,2130.3,2130.2,2.20527]
[1625282701840,4.09986198,2130.4,2130.2,2.20527]
[1625282701940,1.89448498,2130.3,2130.2,2.20527]
[1625282702293,6.80644054,2130.4,2130.2,2.20527]
[1625282702391,1.35340245,2130.3,2130.2,2.20527]
[1625282702595,2.20527,2130.4,2130.2,2.20527]
[1625282703091,1.35415207,2130.3,2130.2,2.20527]
[1625282704794,47.65125207,2130.3,2130.2,2.20527]
[1625282704895,1.35415207,2130.3,2130.2,2.20527]
[1625282705447,60.44205207,2130.3,2130.2,2.20527]
[1625282706100,60.98383599,2130.3,2130.2,2.20527]
[1625282706200,60.98383599,2130.3,2129.0,1.0]
[1625282706301,1.0,2130.2,2128.9,14.7794]
[1625282706404,3.677,2130.2,2128.9,14.7794]
[1625282706503,1.35401273,2130.1,2128.9,14.7794]
[1625282706600,2.35401273,2130.1,2128.9,14.7794]
[1625282706904,1.35351557,2129.9,2128.9,14.7794]
[1625282707104,48.926,2129.2,2128.9,14.7794]
[1625282707453,4.7005,2129.6,2128.6,4.759]
[1625282707561,3.7005,2129.6,2128.6,4.759]
[1625282707661,5.90577,2129.6,2129.5,2.20527]
[1625282708180,49.02277,2129.6,2129.5,2.20527]
[1625282709686,51.22804,2129.6,2129.5,2.20527]
[1625282709787,8.11104,2129.6,2129.5,2.20527]
[1625282710846,54.03584,2129.6,2129.5,2.20527]
[1625282712748,8.11104,2129.6,2129.5,2.20527]
[1625282713851,57.21684,2129.6,2129.5,2.20527]
[1625282714954,57.21684,2129.6,2128.6,4.759]
[1625282715104,5.0,2129.5,2128.6,4.759]
[1625282715305,5.0,2129.5,2128.2,1.38431898]
[1625282715403,1.0,2129.4,2128.2,1.38431898]
[1625282715704,2.20527,2128.6,2128.4,2.20527]
[1625282715854,5.21617,2128.6,2128.4,2.20527]
[1625282716854,49.4768,2128.5,2128.4,2.20527]
[1625282717756,7.42144,2128.6,2128.4,2.20527]
[1625282718508,41.738,2128.5,2128.4,2.20527]
[1625282718928,4.41054,2128.6,2128.4,2.20527]
[1625282719026,4.41054,2128.6,2128.4,4.53947]
[1625282721230,48.87174,2128.6,2128.4,4.53947]
[1625282721381,4.41054,2128.6,2128.4,4.53947]
[1625282730824,4.41054,2128.6,2127.9,2.2965]
[1625282730977,4.41054,2128.6,2127.7,6.14262888]
[1625282731078,8.07264,2128.6,2127.7,6.14262888]
[1625282731426,40.024,2127.8,2127.7,1.38362888]
[1625282731578,40.024,2127.8,2126.9,1.38399776]
[1625282731678,40.024,2127.8,2126.9,6.14299776]
[1625282731777,2.20527,2127.2,2127.1,2.20527]
[1625282731978,2.20527,2127.2,2127.1,2.19617]
[1625282732080,44.31757,2127.2,2127.1,2.19617]
[1625282733282,2.20527,2127.2,2127.1,2.19617]
[1625282733834,4.41054,2127.2,2127.1,2.19617]
[1625282736192,62.21894,2127.2,2127.1,2.19617]
[1625282737399,4.41054,2127.2,2127.1,2.19617]
[1625282737951,4.41054,2127.2,2126.8,2.20527]
[1625282738956,42.7804,2126.9,2126.8,2.20527]
[1625282739061,4.41054,2127.2,2126.8,2.20527]
[1625282739859,2.20527,2126.9,2126.8,2.20527]
[1625282740460,2.20527,2126.9,2126.5,2.20527]
[1625282741265,2.20527,2126.9,2126.5,6.96427]
[1625282741813,2.20527,2126.6,2126.5,9.16954]
[1625282742265,2.20527,2126.9,2126.5,9.16954]
[1625282742366,2.20527,2126.9,2126.5,11.48684]
[1625282743870,2.20527,2126.9,2126.8,2.20527]
[1625282750999,2.20527,2126.9,2126.8,52.66357]
[1625282751201,2.20527,2126.9,2126.8,2.20527]
[1625282759376,7e-05,2126.9,2126.8,2.20527]
[1625282760378,0.00014,2127.1,2126.8,2.20527]
[1625282760478,1.0,2127.8,2126.8,2.20527]
[1625282760578,15.5409,2128.2,2126.8,2.20527]
[1625282760678,1.0,2128.1,2126.8,2.20527]
[1625282760778,15.5409,2128.2,2126.8,2.20527]
[1625282761596,1.33788818,2129.3,2126.8,2.20527]
[1625282761695,1.0,2129.0,2126.8,2.20527]
[1625282761896,2.20527,2128.1,2127.9,2.20527]
[1625282761995,2.20527,2128.1,2127.9,5.13807]
[1625282762806,1.0,2129.0,2127.9,5.13807]
[1625282763009,57.0239,2129.0,2127.9,52.24177]
[1625282763360,57.0239,2129.0,2127.9,5.13807]
[1625282764010,2.20527,2128.4,2128.3,2.20527]
[1625282765363,46.90347,2128.4,2128.3,2.20527]
[1625282766014,49.10874,2128.4,2128.3,2.20527]
[1625282766665,4.41054,2128.4,2128.3,2.20527]
[1625282766765,4.41054,2128.4,2127.9,5.13807]
[1625282768075,2.20527,2128.0,2127.9,5.13807]
[1625282768672,2.20527,2128.0,2127.7,2.20527]
[1625282768776,2.20527,2128.0,2127.1,4.759]
[1625282769376,2.20527,2128.0,2126.3,1.0]
[1625282769479,1.0,2127.9,2125.9,14.4236]
[1625282769676,44.0883,2127.0,2125.9,14.4236]
[1625282769777,45.0883,2127.0,2125.9,14.4236]
[1625282770079,47.29357,2127.0,2126.8,2.20527]
[1625282770180,46.29357,2127.0,2126.8,2.20527]
[1625282772140,2.20527,2126.9,2125.6,1.0]
[1625282772241,1.0,2126.8,2125.1,1.37770887]
[1625282772340,3.9655,2126.8,2125.1,1.37770887]
[1625282772644,3.9655,2126.8,2125.1,4.759]
[1625282772744,47.6039,2125.7,2125.1,4.759]
[1625282772842,50.5055,2125.7,2125.1,4.759]
[1625282773346,50.5055,2125.7,2124.8,14.4723]
[1625282773597,50.5055,2125.7,2124.6,4.759]
[1625282773744,3.9016,2125.7,2124.6,4.759]
[1625282774045,2.20527,2125.3,2125.2,2.20527]
[1625282774899,2.20527,2125.3,2124.6,4.759]
[1625282776156,4.41054,2124.8,2124.7,42.5346]
[1625282776707,3.5143,2125.5,2124.7,42.5346]
[1625282776809,15.6645,2126.7,2124.7,45.6007]
[1625282777058,1.0,2126.6,2124.7,45.6007]
[1625282777311,1.0,2126.6,2125.8,45.7565]
[1625282777415,15.6645,2126.7,2125.8,48.2301]
[1625282777613,56.8633,2127.6,2125.8,48.2301]
[1625282778161,4.41054,2125.9,2125.8,50.43537]
[1625282779011,4.41054,2125.9,2125.8,4.67887]
[1625282779111,4.41054,2125.9,2125.8,2.20527]
[1625282780675,6.74024,2125.9,2125.8,2.20527]
[1625282780879,6.74024,2125.9,2124.8,14.9814]
[1625282781175,6.74024,2125.9,2124.7,42.5346]
[1625282782125,2.20527,2125.2,2125.1,2.20527]
[1625282784181,2.20527,2125.2,2125.1,47.08257]
[1625282784281,2.20527,2125.2,2125.1,2.20527]
[1625282786145,2.20527,2125.2,2124.6,6.96427]
[1625282786848,2.20527,2125.2,2124.7,50.7815]
[1625282788165,2.20527,2124.8,2124.7,50.7815]
[1625282804982,2.20527,2125.2,2124.7,50.7815]
[1625282805135,14.947,2126.7,2124.7,58.0806]
[1625282805232,14.947,2126.7,2125.2,1.15]
[1625282805381,14.947,2126.7,2125.3,1.0]
[1625282805684,14.947,2126.7,2126.4,43.2315]
[1625282805784,14.947,2126.7,2126.4,46.5439]
[1625282805983,5.0,2127.7,2126.4,46.5439]
[1625282806186,5.0,2127.7,2126.4,3.3124]
[1625282806335,4.41054,2126.5,2126.4,3.3124]
[1625282807793,4.41054,2126.5,2126.2,2.20527]
[1625282808294,39.8341,2126.3,2126.2,2.20527]
[1625282808548,4.41054,2126.5,2126.2,2.20527]
[1625282808647,4.41054,2126.5,2125.9,2.20527]
[1625282809103,51.9514,2126.4,2125.9,2.20527]
[1625282809402,4.41054,2126.5,2125.9,2.20527]
[1625282810369,2.20527,2126.0,2125.9,2.20527]